[Event "Titled Tuesday Blitz September 20 Late 2022"]
[White "Souleidis, Georgios"]
[Black "Khlebovich, Alexander"]
[WhiteFideId "4206827"]
[BlackFideId "4169123"]
[WhiteElo "2401"]
[BlackElo "2355"]
[Result "1-0"]
[Round "02"]
[TimeControl "180+1"]
[Date "2022.09.20"]
[WhiteClock "0:00:39"]
[BlackClock "0:00:28"]

1. e4 {[%clk 0:02:58]}  c5 {[%clk 0:03:00]} 2. Be2 {[%clk 0:02:56]}  Nc6 {[%clk 0:02:57]} 3. d3 {[%clk 0:02:57]}  g6 {[%clk 0:02:56]} 4. f4 {[%clk 0:02:57]}  Bg7 {[%clk 0:02:56]} 5. Nf3 {[%clk 0:02:58]}  d6 {[%clk 0:02:49]} 6. O-O {[%clk 0:02:58]}  Nf6 {[%clk 0:02:49]} 7. c3 {[%clk 0:02:59]}  O-O {[%clk 0:02:49]} 8. Kh1 {[%clk 0:02:59]}  b5 {[%clk 0:02:48]} 9. a3 {[%clk 0:02:59]}  Rb8 {[%clk 0:02:46]} 10. Be3 {[%clk 0:03:00]}  a5 {[%clk 0:02:45]} 11. Nbd2 {[%clk 0:02:59]}  b4 {[%clk 0:02:45]} 12. d4 {[%clk 0:03:00]}  bxc3 {[%clk 0:02:39]} 13. bxc3 {[%clk 0:03:01]}  cxd4 {[%clk 0:02:39]} 14. cxd4 {[%clk 0:03:02]}  e6 {[%clk 0:02:38]} 15. Rc1 {[%clk 0:02:56]}  Bb7 {[%clk 0:02:34]} 16. Bd3 {[%clk 0:02:46]}  Qe7 {[%clk 0:02:26]} 17. Qa4 {[%clk 0:02:37]}  Rfc8 {[%clk 0:02:22]} 18. Rc2 {[%clk 0:01:58]}  Qd8 {[%clk 0:02:15]} 19. Rfc1 {[%clk 0:01:55]}  Ne7 {[%clk 0:02:11]} 20. h3 {[%clk 0:01:36]}  Rxc2 {[%clk 0:02:05]} 21. Rxc2 {[%clk 0:01:36]}  Nd7 {[%clk 0:02:01]} 22. Nb3 {[%clk 0:01:11]}  Ra8 {[%clk 0:01:53]} 23. Nbd2 {[%clk 0:01:04]}  h6 {[%clk 0:01:39]} 24. Kh2 {[%clk 0:01:03]}  f5 {[%clk 0:01:28]} 25. Qb3 {[%clk 0:00:55]}  fxe4 {[%clk 0:01:17]} 26. Qxe6+ {[%clk 0:00:54]}  Kh7 {[%clk 0:01:16]} 27. Bxe4 {[%clk 0:00:53]}  Nf8 {[%clk 0:01:15]} 28. Qf7 {[%clk 0:00:49]}  Bc8 {[%clk 0:00:57]} 29. d5 {[%clk 0:00:39]}  Ra7 {[%clk 0:00:28]} 30. Bxa7 {[%clk 0:00:39]} 1-0


[Site "https://www.chess.com"]

[Event "Titled Tuesday Blitz September 20 Late 2022"]
[White "Stoyanov, Tsvetan"]
[Black "Melkumyan, Hrant"]
[WhiteFideId "2917173"]
[BlackFideId "13302485"]
[WhiteElo "2283"]
[BlackElo "2604"]
[Result "0-1"]
[Round "02"]
[TimeControl "180+1"]
[Date "2022.09.20"]
[WhiteClock "0:00:04"]
[BlackClock "0:00:51"]

1. e4 {[%clk 0:03:00]}  c6 {[%clk 0:03:00]} 2. d4 {[%clk 0:02:59]}  d5 {[%clk 0:03:01]} 3. Nc3 {[%clk 0:03:00]}  dxe4 {[%clk 0:03:01]} 4. Nxe4 {[%clk 0:03:01]}  Nf6 {[%clk 0:03:01]} 5. Nxf6+ {[%clk 0:03:01]}  exf6 {[%clk 0:03:02]} 6. c3 {[%clk 0:03:02]}  Bd6 {[%clk 0:03:02]} 7. Bd3 {[%clk 0:03:03]}  O-O {[%clk 0:03:03]} 8. Qc2 {[%clk 0:03:03]}  Re8+ {[%clk 0:03:03]} 9. Ne2 {[%clk 0:03:04]}  h5 {[%clk 0:03:04]} 10. Be3 {[%clk 0:03:04]}  Nd7 {[%clk 0:03:01]} 11. O-O-O {[%clk 0:03:04]}  Nf8 {[%clk 0:02:58]} 12. c4 {[%clk 0:03:00]}  b5 {[%clk 0:02:46]} 13. c5 {[%clk 0:02:48]}  Bc7 {[%clk 0:02:44]} 14. d5 {[%clk 0:02:47]}  cxd5 {[%clk 0:02:36]} 15. Bxb5 {[%clk 0:02:47]}  Rxe3 {[%clk 0:02:29]} 16. fxe3 {[%clk 0:02:46]}  Rb8 {[%clk 0:02:30]} 17. Ba4 {[%clk 0:02:40]}  Qe7 {[%clk 0:02:22]} 18. Qc3 {[%clk 0:02:05]}  Bg4 {[%clk 0:02:13]} 19. Nd4 {[%clk 0:01:46]}  Bxd1 {[%clk 0:02:02]} 20. Rxd1 {[%clk 0:01:46]}  Qe4 {[%clk 0:01:46]} 21. Bc2 {[%clk 0:01:44]}  Qxg2 {[%clk 0:01:38]} 22. Qa3 {[%clk 0:01:05]}  a5 {[%clk 0:01:35]} 23. Nc6 {[%clk 0:01:00]}  Re8 {[%clk 0:01:30]} 24. Qd3 {[%clk 0:00:55]}  Qxh2 {[%clk 0:01:26]} 25. Qxd5 {[%clk 0:00:49]}  Rxe3 {[%clk 0:01:19]} 26. Nd4 {[%clk 0:00:49]}  g6 {[%clk 0:01:09]} 27. Bb3 {[%clk 0:00:37]}  Re7 {[%clk 0:01:04]} 28. Nc6 {[%clk 0:00:26]}  Rd7 {[%clk 0:01:04]} 29. Qc4 {[%clk 0:00:20]}  Qf4+ {[%clk 0:01:04]} 30. Qxf4 {[%clk 0:00:18]}  Bxf4+ {[%clk 0:01:05]} 31. Kc2 {[%clk 0:00:17]}  Rc7 {[%clk 0:01:06]} 32. Bd5 {[%clk 0:00:16]}  Ne6 {[%clk 0:01:03]} 33. Bxe6 {[%clk 0:00:08]}  Rxc6 {[%clk 0:01:03]} 34. Rd8+ {[%clk 0:00:06]}  Kg7 {[%clk 0:01:03]} 35. Bc4 {[%clk 0:00:07]}  Rxc5 {[%clk 0:01:03]} 36. b3 {[%clk 0:00:08]}  Rc7 {[%clk 0:00:59]} 37. Kd3 {[%clk 0:00:08]}  h4 {[%clk 0:00:57]} 38. Ke2 {[%clk 0:00:08]}  h3 {[%clk 0:00:57]} 39. Kf3 {[%clk 0:00:09]}  h2 {[%clk 0:00:58]} 40. Rd1 {[%clk 0:00:08]}  Be5 {[%clk 0:00:58]} 41. Ke4 {[%clk 0:00:08]}  Rc5 {[%clk 0:00:55]} 42. Bd3 {[%clk 0:00:06]}  f5+ {[%clk 0:00:56]} 43. Kf3 {[%clk 0:00:06]}  Rc3 {[%clk 0:00:53]} 44. Ke2 {[%clk 0:00:05]}  Kf6 {[%clk 0:00:53]} 45. Bc4 {[%clk 0:00:04]}  f4 {[%clk 0:00:52]} 46. Bd5 {[%clk 0:00:04]}  g5 {[%clk 0:00:50]} 47. Be4 {[%clk 0:00:04]}  g4 {[%clk 0:00:51]} 0-1


[Site "https://www.chess.com"]

[Event "Titled Tuesday Blitz September 20 Late 2022"]
[White "Taichman, Ori"]
[Black "Bluebaum, Matthias"]
[WhiteFideId "2804069"]
[BlackFideId "24651516"]
[WhiteElo "2227"]
[BlackElo "2633"]
[Result "0-1"]
[Round "02"]
[TimeControl "180+1"]
[Date "2022.09.20"]
[WhiteClock "0:01:26"]
[BlackClock "0:02:02"]

1. e4 {[%clk 0:03:00]}  e6 {[%clk 0:02:59]} 2. d4 {[%clk 0:03:00]}  d5 {[%clk 0:03:00]} 3. Nc3 {[%clk 0:03:00]}  Nf6 {[%clk 0:03:00]} 4. Bg5 {[%clk 0:02:59]}  dxe4 {[%clk 0:03:00]} 5. Nxe4 {[%clk 0:02:59]}  Be7 {[%clk 0:03:01]} 6. Bxf6 {[%clk 0:02:55]}  gxf6 {[%clk 0:03:01]} 7. Nf3 {[%clk 0:02:55]}  f5 {[%clk 0:03:02]} 8. Nc3 {[%clk 0:02:55]}  a6 {[%clk 0:03:02]} 9. Bd3 {[%clk 0:02:55]}  c5 {[%clk 0:02:56]} 10. d5 {[%clk 0:02:48]}  Bf6 {[%clk 0:02:49]} 11. dxe6 {[%clk 0:02:39]}  Bxe6 {[%clk 0:02:50]} 12. a4 {[%clk 0:02:32]}  O-O {[%clk 0:02:48]} 13. Qd2 {[%clk 0:02:29]}  Nc6 {[%clk 0:02:44]} 14. Qh6 {[%clk 0:02:27]}  Bg7 {[%clk 0:02:35]} 15. Qh5 {[%clk 0:02:27]}  Qf6 {[%clk 0:02:35]} 16. g4 {[%clk 0:02:21]}  Qg6 {[%clk 0:02:17]} 17. Bxf5 {[%clk 0:02:05]}  Qxh5 {[%clk 0:02:15]} 18. gxh5 {[%clk 0:01:57]}  Bxf5 {[%clk 0:02:13]} 19. O-O-O {[%clk 0:01:57]}  Nb4 {[%clk 0:02:10]} 20. Rhg1 {[%clk 0:01:57]}  Kh8 {[%clk 0:02:11]} 21. Nd5 {[%clk 0:01:47]}  Bh6+ {[%clk 0:02:10]} 22. Ng5 {[%clk 0:01:44]}  f6 {[%clk 0:02:08]} 23. f4 {[%clk 0:01:37]}  fxg5 {[%clk 0:02:01]} 24. fxg5 {[%clk 0:01:38]}  Bg7 {[%clk 0:02:02]} 25. h6 {[%clk 0:01:34]}  Be5 {[%clk 0:02:02]} 26. Nxb4 {[%clk 0:01:26]}  cxb4 {[%clk 0:02:03]} 27. Rd5 {[%clk 0:01:26]}  Bf4+ {[%clk 0:02:01]} 28. Kb1 {[%clk 0:01:26]}  b3 {[%clk 0:02:02]} 0-1


[Site "https://www.chess.com"]

[Event "Titled Tuesday Blitz September 20 Late 2022"]
[White "Vasquez Schroeder, Rodrigo"]
[Black "Mortazavi, Ali"]
[WhiteFideId "3400042"]
[BlackFideId "401323"]
[WhiteElo "2577"]
[BlackElo "2339"]
[Result "1-0"]
[Round "02"]
[TimeControl "180+1"]
[Date "2022.09.20"]
[WhiteClock "0:00:21"]
[BlackClock "0:00:02"]

1. d4 {[%clk 0:03:00]}  Nf6 {[%clk 0:02:59]} 2. Nf3 {[%clk 0:03:00]}  g6 {[%clk 0:03:00]} 3. c4 {[%clk 0:02:58]}  Bg7 {[%clk 0:03:00]} 4. g3 {[%clk 0:02:59]}  O-O {[%clk 0:03:01]} 5. Bg2 {[%clk 0:02:59]}  d6 {[%clk 0:03:02]} 6. O-O {[%clk 0:02:59]}  Nbd7 {[%clk 0:03:02]} 7. Nc3 {[%clk 0:02:58]}  e5 {[%clk 0:03:02]} 8. e4 {[%clk 0:02:59]}  c6 {[%clk 0:03:02]} 9. Be3 {[%clk 0:02:57]}  a6 {[%clk 0:02:45]} 10. Qc2 {[%clk 0:02:41]}  exd4 {[%clk 0:02:32]} 11. Nxd4 {[%clk 0:02:40]}  Ng4 {[%clk 0:02:31]} 12. Qd2 {[%clk 0:02:30]}  Nxe3 {[%clk 0:02:30]} 13. Qxe3 {[%clk 0:02:29]}  Qb6 {[%clk 0:02:23]} 14. Rfd1 {[%clk 0:02:28]}  Re8 {[%clk 0:02:18]} 15. Rab1 {[%clk 0:02:23]}  a5 {[%clk 0:02:06]} 16. Qd2 {[%clk 0:02:19]}  h5 {[%clk 0:01:53]} 17. b3 {[%clk 0:02:13]}  h4 {[%clk 0:01:52]} 18. Nde2 {[%clk 0:02:07]}  hxg3 {[%clk 0:01:51]} 19. hxg3 {[%clk 0:02:07]}  Ne5 {[%clk 0:01:46]} 20. Na4 {[%clk 0:01:57]}  Qa7 {[%clk 0:01:42]} 21. Qf4 {[%clk 0:01:50]}  Bg4 {[%clk 0:01:35]} 22. Rd2 {[%clk 0:01:49]}  Kh7 {[%clk 0:01:24]} 23. Rc2 {[%clk 0:01:31]}  Bh6 {[%clk 0:01:11]} 24. Qf6 {[%clk 0:01:31]}  Re6 {[%clk 0:01:03]} 25. Qh4 {[%clk 0:01:31]}  Nf3+ {[%clk 0:00:59]} 26. Bxf3 {[%clk 0:01:30]}  Bxf3 {[%clk 0:01:00]} 27. Nac3 {[%clk 0:01:26]}  Kg7 {[%clk 0:00:52]} 28. Nf4 {[%clk 0:01:23]}  Rf6 {[%clk 0:00:52]} 29. Ng2 {[%clk 0:01:03]}  Rh8 {[%clk 0:00:46]} 30. Qh3 {[%clk 0:00:42]}  b6 {[%clk 0:00:29]} 31. g4 {[%clk 0:00:35]}  Bg5 {[%clk 0:00:21]} 32. Qg3 {[%clk 0:00:35]}  Qd7 {[%clk 0:00:15]} 33. e5 {[%clk 0:00:32]}  dxe5 {[%clk 0:00:13]} 34. Qxe5 {[%clk 0:00:33]}  Qxg4 {[%clk 0:00:12]} 35. Qg3 {[%clk 0:00:33]}  Qxg3 {[%clk 0:00:10]} 36. fxg3 {[%clk 0:00:33]}  Re8 {[%clk 0:00:10]} 37. Rf1 {[%clk 0:00:31]}  Bxg2 {[%clk 0:00:09]} 38. Kxg2 {[%clk 0:00:30]}  Rxf1 {[%clk 0:00:09]} 39. Kxf1 {[%clk 0:00:31]}  Re3 {[%clk 0:00:10]} 40. Kf2 {[%clk 0:00:31]}  Re6 {[%clk 0:00:08]} 41. Ne2 {[%clk 0:00:30]}  Bf6 {[%clk 0:00:07]} 42. Nf4 {[%clk 0:00:29]}  Rd6 {[%clk 0:00:08]} 43. Re2 {[%clk 0:00:29]}  Bd4+ {[%clk 0:00:07]} 44. Kf3 {[%clk 0:00:29]}  g5 {[%clk 0:00:08]} 45. Nh5+ {[%clk 0:00:29]}  Kg6 {[%clk 0:00:08]} 46. g4 {[%clk 0:00:30]}  f5 {[%clk 0:00:08]} 47. Re7 {[%clk 0:00:28]}  Bf6 {[%clk 0:00:08]} 48. gxf5+ {[%clk 0:00:23]}  Kxf5 {[%clk 0:00:06]} 49. Ng3+ {[%clk 0:00:22]}  Kg6 {[%clk 0:00:06]} 50. Rb7 {[%clk 0:00:22]}  Bd4 {[%clk 0:00:06]} 51. Ne4 {[%clk 0:00:22]}  Re6 {[%clk 0:00:06]} 52. Rd7 {[%clk 0:00:22]}  c5 {[%clk 0:00:06]} 53. Rd5 {[%clk 0:00:21]}  Bf6 {[%clk 0:00:05]} 54. Nd6 {[%clk 0:00:20]}  Be7 {[%clk 0:00:04]} 55. Ne4 {[%clk 0:00:20]}  Bf6 {[%clk 0:00:03]} 56. Nf2 {[%clk 0:00:20]}  Bd4 {[%clk 0:00:03]} 57. Ng4 {[%clk 0:00:19]}  Re1 {[%clk 0:00:02]} 58. Rd6+ {[%clk 0:00:19]}  Kf5 {[%clk 0:00:02]} 59. Nh6+ {[%clk 0:00:19]}  Ke5 {[%clk 0:00:02]} 60. Nf7+ {[%clk 0:00:20]}  Kf5 {[%clk 0:00:02]} 61. Rd5+ {[%clk 0:00:20]}  Ke6 {[%clk 0:00:02]} 62. Nxg5+ {[%clk 0:00:21]}  Ke7 {[%clk 0:00:02]} 63. Ne4 {[%clk 0:00:20]}  Re3+ {[%clk 0:00:02]} 64. Kf4 {[%clk 0:00:21]}  Re2 {[%clk 0:00:03]} 65. Nd6 {[%clk 0:00:19]}  Rxa2 {[%clk 0:00:03]} 66. Nf5+ {[%clk 0:00:19]}  Ke6 {[%clk 0:00:03]} 67. Rd6+ {[%clk 0:00:20]}  Kf7 {[%clk 0:00:03]} 68. Rxb6 {[%clk 0:00:20]}  Ra3 {[%clk 0:00:03]} 69. Ke4 {[%clk 0:00:20]}  Bg1 {[%clk 0:00:03]} 70. Nd6+ {[%clk 0:00:20]}  Ke6 {[%clk 0:00:03]} 71. Nb5+ {[%clk 0:00:20]}  Kd7 {[%clk 0:00:02]} 72. Nxa3 {[%clk 0:00:21]} 1-0


[Site "https://www.chess.com"]

[Event "Titled Tuesday Blitz September 20 Late 2022"]
[White "Winterberg, Lukas"]
[Black "Yanchenko, Roman"]
[WhiteFideId "24622702"]
[BlackFideId "4137329"]
[WhiteElo "2349"]
[BlackElo "2514"]
[Result "1-0"]
[Round "02"]
[TimeControl "180+1"]
[Date "2022.09.20"]
[WhiteClock "0:01:13"]
[BlackClock "0:00:42"]

1. d4 {[%clk 0:03:00]}  d5 {[%clk 0:03:00]} 2. Nf3 {[%clk 0:03:00]}  Bf5 {[%clk 0:02:59]} 3. c4 {[%clk 0:03:01]}  c6 {[%clk 0:02:59]} 4. Nc3 {[%clk 0:03:01]}  e6 {[%clk 0:03:00]} 5. Qb3 {[%clk 0:02:57]}  Qb6 {[%clk 0:03:00]} 6. c5 {[%clk 0:02:57]}  Qc7 {[%clk 0:03:00]} 7. Bf4 {[%clk 0:02:57]}  Qc8 {[%clk 0:03:01]} 8. e3 {[%clk 0:02:57]}  Nd7 {[%clk 0:03:01]} 9. h3 {[%clk 0:02:57]}  Ngf6 {[%clk 0:03:01]} 10. Qd1 {[%clk 0:02:55]}  Be7 {[%clk 0:03:01]} 11. Be2 {[%clk 0:02:54]}  Bd8 {[%clk 0:03:01]} 12. O-O {[%clk 0:02:54]}  Bc7 {[%clk 0:03:01]} 13. b4 {[%clk 0:02:55]}  a6 {[%clk 0:03:00]} 14. a4 {[%clk 0:02:54]}  Ne4 {[%clk 0:02:57]} 15. Nxe4 {[%clk 0:02:54]}  Bxe4 {[%clk 0:02:58]} 16. Bxc7 {[%clk 0:02:51]}  Qxc7 {[%clk 0:02:58]} 17. b5 {[%clk 0:02:51]}  Bxf3 {[%clk 0:02:29]} 18. bxc6 {[%clk 0:02:51]}  bxc6 {[%clk 0:02:15]} 19. Bxf3 {[%clk 0:02:51]}  O-O {[%clk 0:02:13]} 20. Qd2 {[%clk 0:02:46]}  e5 {[%clk 0:02:14]} 21. Rab1 {[%clk 0:02:45]}  f5 {[%clk 0:02:10]} 22. Be2 {[%clk 0:02:42]}  f4 {[%clk 0:02:05]} 23. Bg4 {[%clk 0:02:37]}  fxe3 {[%clk 0:01:54]} 24. fxe3 {[%clk 0:02:36]}  Nf6 {[%clk 0:01:53]} 25. Bf5 {[%clk 0:02:24]}  g6 {[%clk 0:01:50]} 26. Bd3 {[%clk 0:02:23]}  Nh5 {[%clk 0:01:42]} 27. Rxf8+ {[%clk 0:02:13]}  Rxf8 {[%clk 0:01:41]} 28. Bxa6 {[%clk 0:02:13]}  Ra8 {[%clk 0:01:41]} 29. Rb6 {[%clk 0:02:12]}  Ng3 {[%clk 0:01:34]} 30. a5 {[%clk 0:02:01]}  exd4 {[%clk 0:01:33]} 31. exd4 {[%clk 0:01:56]}  Nf5 {[%clk 0:01:28]} 32. Bb7 {[%clk 0:01:50]}  Re8 {[%clk 0:01:24]} 33. Bxc6 {[%clk 0:01:49]}  Rd8 {[%clk 0:01:14]} 34. Qg5 {[%clk 0:01:32]}  Rf8 {[%clk 0:00:50]} 35. Bxd5+ {[%clk 0:01:32]}  Kh8 {[%clk 0:00:50]} 36. Rf6 {[%clk 0:01:22]}  Rb8 {[%clk 0:00:44]} 37. Rxf5 {[%clk 0:01:21]}  gxf5 {[%clk 0:00:44]} 38. Qf6+ {[%clk 0:01:20]}  Qg7 {[%clk 0:00:43]} 39. Qxg7+ {[%clk 0:01:21]}  Kxg7 {[%clk 0:00:44]} 40. a6 {[%clk 0:01:21]}  Rb1+ {[%clk 0:00:42]} 41. Kf2 {[%clk 0:01:21]}  Ra1 {[%clk 0:00:42]} 42. c6 {[%clk 0:01:13]} 1-0


[Site "https://www.chess.com"]

[Event "Titled Tuesday Blitz September 20 Late 2022"]
[White "Zhigalko, Sergei"]
[Black "Lewtak, Damian"]
[WhiteFideId "13502956"]
[BlackFideId "1141724"]
[WhiteElo "2662"]
[BlackElo "2329"]
[Result "1-0"]
[Round "02"]
[TimeControl "180+1"]
[Date "2022.09.20"]
[WhiteClock "0:00:12"]
[BlackClock "0:00:12"]

1. e4 {[%clk 0:03:00]}  e6 {[%clk 0:02:59]} 2. d4 {[%clk 0:03:00]}  d5 {[%clk 0:02:59]} 3. e5 {[%clk 0:03:01]}  c5 {[%clk 0:02:59]} 4. c3 {[%clk 0:03:02]}  Nc6 {[%clk 0:02:59]} 5. Nf3 {[%clk 0:03:02]}  Qb6 {[%clk 0:02:59]} 6. a3 {[%clk 0:03:00]}  c4 {[%clk 0:02:56]} 7. Nbd2 {[%clk 0:03:00]}  Na5 {[%clk 0:02:54]} 8. Be2 {[%clk 0:03:00]}  Bd7 {[%clk 0:02:54]} 9. O-O {[%clk 0:03:00]}  Ne7 {[%clk 0:02:54]} 10. h4 {[%clk 0:02:59]}  O-O-O {[%clk 0:02:50]} 11. h5 {[%clk 0:02:58]}  h6 {[%clk 0:02:49]} 12. Qe1 {[%clk 0:02:55]}  Kb8 {[%clk 0:02:47]} 13. Bd1 {[%clk 0:02:55]}  Ka8 {[%clk 0:02:46]} 14. Bc2 {[%clk 0:02:54]}  Nf5 {[%clk 0:02:43]} 15. g4 {[%clk 0:02:53]}  Ne7 {[%clk 0:02:44]} 16. Nh4 {[%clk 0:02:53]}  g6 {[%clk 0:02:18]} 17. hxg6 {[%clk 0:02:45]}  fxg6 {[%clk 0:02:14]} 18. f4 {[%clk 0:02:21]}  g5 {[%clk 0:02:11]} 19. fxg5 {[%clk 0:02:09]}  hxg5 {[%clk 0:02:09]} 20. Ng2 {[%clk 0:02:09]}  Be8 {[%clk 0:01:56]} 21. Nf3 {[%clk 0:02:07]}  Bh6 {[%clk 0:01:42]} 22. Rb1 {[%clk 0:01:46]}  Nb3 {[%clk 0:01:34]} 23. Bxg5 {[%clk 0:01:42]}  Bxg5 {[%clk 0:01:23]} 24. Nxg5 {[%clk 0:01:41]}  Nxd4 {[%clk 0:01:15]} 25. cxd4 {[%clk 0:01:39]}  Qxd4+ {[%clk 0:01:15]} 26. Qe3 {[%clk 0:01:03]}  Qxg4 {[%clk 0:01:15]} 27. Bd1 {[%clk 0:00:40]}  d4 {[%clk 0:00:44]} 28. Bxg4 {[%clk 0:00:26]}  dxe3 {[%clk 0:00:45]} 29. Nxe6 {[%clk 0:00:26]}  Rd2 {[%clk 0:00:42]} 30. Nc7+ {[%clk 0:00:27]}  Kb8 {[%clk 0:00:40]} 31. Nxe8 {[%clk 0:00:27]}  Rxe8 {[%clk 0:00:40]} 32. Nxe3 {[%clk 0:00:18]}  Rg8 {[%clk 0:00:37]} 33. Rf2 {[%clk 0:00:13]}  Rd3 {[%clk 0:00:34]} 34. Re1 {[%clk 0:00:13]}  Nd5 {[%clk 0:00:33]} 35. Nxd5 {[%clk 0:00:06]}  Rxg4+ {[%clk 0:00:33]} 36. Rg2 {[%clk 0:00:07]}  Rxg2+ {[%clk 0:00:32]} 37. Kxg2 {[%clk 0:00:08]}  Rxd5 {[%clk 0:00:33]} 38. e6 {[%clk 0:00:03]}  Rd8 {[%clk 0:00:33]} 39. Kf3 {[%clk 0:00:04]}  Kc7 {[%clk 0:00:33]} 40. Kf4 {[%clk 0:00:03]}  Kd6 {[%clk 0:00:18]} 41. Rd1+ {[%clk 0:00:04]}  Ke7 {[%clk 0:00:19]} 42. Rxd8 {[%clk 0:00:04]}  Kxd8 {[%clk 0:00:19]} 43. Ke5 {[%clk 0:00:04]}  Ke7 {[%clk 0:00:20]} 44. a4 {[%clk 0:00:03]}  b6 {[%clk 0:00:08]} 45. Kd5 {[%clk 0:00:04]}  a6 {[%clk 0:00:02]} 46. Kc6 {[%clk 0:00:04]}  b5 {[%clk 0:00:02]} 47. axb5 {[%clk 0:00:05]}  a5 {[%clk 0:00:03]} 48. Kd5 {[%clk 0:00:05]}  a4 {[%clk 0:00:03]} 49. Kxc4 {[%clk 0:00:06]}  Kxe6 {[%clk 0:00:04]} 50. Kb4 {[%clk 0:00:06]}  Kd7 {[%clk 0:00:05]} 51. Kxa4 {[%clk 0:00:06]}  Kc7 {[%clk 0:00:06]} 52. Ka5 {[%clk 0:00:06]}  Kb7 {[%clk 0:00:06]} 53. b6 {[%clk 0:00:07]}  Kb8 {[%clk 0:00:07]} 54. Ka6 {[%clk 0:00:07]}  Ka8 {[%clk 0:00:07]} 55. b7+ {[%clk 0:00:08]}  Kb8 {[%clk 0:00:08]} 56. b3 {[%clk 0:00:08]}  Kc7 {[%clk 0:00:08]} 57. Ka7 {[%clk 0:00:09]}  Kc6 {[%clk 0:00:09]} 58. b8=Q {[%clk 0:00:10]}  Kc5 {[%clk 0:00:09]} 59. b4+ {[%clk 0:00:10]}  Kc6 {[%clk 0:00:10]} 60. b5+ {[%clk 0:00:11]}  Kc5 {[%clk 0:00:11]} 61. b6 {[%clk 0:00:11]}  Kb5 {[%clk 0:00:11]} 62. b7 {[%clk 0:00:11]}  Ka5 {[%clk 0:00:11]} 63. Qc8 {[%clk 0:00:11]}  Kb5 {[%clk 0:00:12]} 64. b8=Q+ {[%clk 0:00:11]}  Ka5 {[%clk 0:00:12]} 65. Qa6# {[%clk 0:00:12]} 1-0


[Site "https://www.chess.com"]

[Event "Titled Tuesday Blitz September 20 Late 2022"]
[White "Zierk, Steven"]
[Black "Melikyan, Gnel"]
[WhiteFideId "2034255"]
[BlackFideId "54109990"]
[WhiteElo "2494"]
[BlackElo "1772"]
[Result "0-1"]
[Round "02"]
[TimeControl "180+1"]
[Date "2022.09.20"]
[WhiteClock "0:00:16"]
[BlackClock "0:00:13"]

1. e4 {[%clk 0:03:00]}  c5 {[%clk 0:02:59]} 2. Nf3 {[%clk 0:03:00]}  Nc6 {[%clk 0:02:58]} 3. Bb5 {[%clk 0:03:00]}  e6 {[%clk 0:02:58]} 4. O-O {[%clk 0:03:00]}  Nge7 {[%clk 0:02:58]} 5. Re1 {[%clk 0:03:00]}  a6 {[%clk 0:02:58]} 6. Bf1 {[%clk 0:03:00]}  d5 {[%clk 0:02:58]} 7. exd5 {[%clk 0:03:01]}  Nxd5 {[%clk 0:02:57]} 8. d4 {[%clk 0:03:01]}  Nf6 {[%clk 0:02:57]} 9. Be3 {[%clk 0:03:01]}  cxd4 {[%clk 0:02:53]} 10. Nxd4 {[%clk 0:03:02]}  Bd7 {[%clk 0:02:53]} 11. c4 {[%clk 0:03:01]}  Nxd4 {[%clk 0:02:49]} 12. Bxd4 {[%clk 0:03:02]}  Bc6 {[%clk 0:02:49]} 13. Nc3 {[%clk 0:03:01]}  Be7 {[%clk 0:02:47]} 14. Qd2 {[%clk 0:02:44]}  O-O {[%clk 0:02:42]} 15. Rad1 {[%clk 0:02:44]}  Qc7 {[%clk 0:02:31]} 16. Be5 {[%clk 0:02:42]}  Qb6 {[%clk 0:02:19]} 17. Qf4 {[%clk 0:02:40]}  Nd7 {[%clk 0:01:52]} 18. Bd4 {[%clk 0:02:13]}  Bc5 {[%clk 0:01:51]} 19. Bxc5 {[%clk 0:02:02]}  Qxc5 {[%clk 0:01:43]} 20. a3 {[%clk 0:01:56]}  Rfd8 {[%clk 0:01:31]} 21. b4 {[%clk 0:01:54]}  Qh5 {[%clk 0:01:15]} 22. b5 {[%clk 0:01:44]}  axb5 {[%clk 0:01:13]} 23. cxb5 {[%clk 0:01:44]}  Bd5 {[%clk 0:01:08]} 24. Nxd5 {[%clk 0:01:42]}  exd5 {[%clk 0:01:09]} 25. Re7 {[%clk 0:01:38]}  Nf6 {[%clk 0:01:05]} 26. Rde1 {[%clk 0:01:26]}  d4 {[%clk 0:00:58]} 27. Rxb7 {[%clk 0:01:24]}  d3 {[%clk 0:00:56]} 28. Qd2 {[%clk 0:01:04]}  Qd5 {[%clk 0:00:55]} 29. Ree7 {[%clk 0:00:53]}  Ne4 {[%clk 0:00:23]} 30. Qf4 {[%clk 0:00:38]}  Nd6 {[%clk 0:00:23]} 31. Rbd7 {[%clk 0:00:16]}  d2 {[%clk 0:00:16]} 32. Qxd6 {[%clk 0:00:16]}  Qxd6 {[%clk 0:00:15]} 33. Re8+ {[%clk 0:00:15]}  Qf8 {[%clk 0:00:13]} 34. Rd6 {[%clk 0:00:16]}  Qxe8 {[%clk 0:00:13]} 0-1


[Site "https://www.chess.com"]

[Event "Titled Tuesday Blitz September 20 Late 2022"]
[White "Bayo Milagro, Alvaro"]
[Black "Kamsky, Gata"]
[WhiteFideId "22275240"]
[BlackFideId "2000024"]
[WhiteElo "2270"]
[BlackElo "2666"]
[Result "0-1"]
[Round "03"]
[TimeControl "180+1"]
[Date "2022.09.20"]
[WhiteClock "0:00:19"]
[BlackClock "0:01:00"]

1. e4 {[%clk 0:03:00]}  c5 {[%clk 0:02:57]} 2. Nf3 {[%clk 0:03:00]}  e6 {[%clk 0:02:57]} 3. d4 {[%clk 0:03:00]}  cxd4 {[%clk 0:02:57]} 4. Nxd4 {[%clk 0:03:01]}  a6 {[%clk 0:02:57]} 5. Be2 {[%clk 0:02:59]}  b6 {[%clk 0:02:53]} 6. O-O {[%clk 0:02:55]}  Bb7 {[%clk 0:02:54]} 7. Nc3 {[%clk 0:02:54]}  Qc7 {[%clk 0:02:50]} 8. Qd3 {[%clk 0:02:53]}  Nf6 {[%clk 0:02:49]} 9. Bg5 {[%clk 0:02:50]}  Be7 {[%clk 0:02:48]} 10. f4 {[%clk 0:02:36]}  d6 {[%clk 0:02:36]} 11. Bf3 {[%clk 0:02:35]}  Nbd7 {[%clk 0:02:33]} 12. Rae1 {[%clk 0:02:29]}  O-O {[%clk 0:02:17]} 13. Kh1 {[%clk 0:02:13]}  Rad8 {[%clk 0:02:13]} 14. Qe2 {[%clk 0:01:43]}  h6 {[%clk 0:02:10]} 15. Bh4 {[%clk 0:01:40]}  Rfe8 {[%clk 0:01:56]} 16. e5 {[%clk 0:01:36]}  dxe5 {[%clk 0:01:53]} 17. fxe5 {[%clk 0:01:27]}  Qxe5 {[%clk 0:01:50]} 18. Qc4 {[%clk 0:00:51]}  Qc5 {[%clk 0:01:46]} 19. Qxc5 {[%clk 0:00:46]}  Nxc5 {[%clk 0:01:45]} 20. Bxb7 {[%clk 0:00:45]}  Rxd4 {[%clk 0:01:44]} 21. Bf2 {[%clk 0:00:38]}  Rd2 {[%clk 0:01:43]} 22. Bxc5 {[%clk 0:00:30]}  Bxc5 {[%clk 0:01:42]} 23. Bxa6 {[%clk 0:00:30]}  Rxc2 {[%clk 0:01:41]} 24. Re2 {[%clk 0:00:23]}  Rxe2 {[%clk 0:01:38]} 25. Bxe2 {[%clk 0:00:24]}  Bd4 {[%clk 0:01:34]} 26. Nb5 {[%clk 0:00:21]}  Bxb2 {[%clk 0:01:31]} 27. Rb1 {[%clk 0:00:19]}  Be5 {[%clk 0:01:31]} 28. Na3 {[%clk 0:00:19]}  Bd4 {[%clk 0:01:29]} 29. Nc4 {[%clk 0:00:20]}  Ra8 {[%clk 0:01:26]} 30. a3 {[%clk 0:00:18]}  g5 {[%clk 0:01:24]} 31. g3 {[%clk 0:00:18]}  Kg7 {[%clk 0:01:22]} 32. Kg2 {[%clk 0:00:19]}  g4 {[%clk 0:01:05]} 33. Rd1 {[%clk 0:00:19]}  Bc5 {[%clk 0:01:01]} 34. Rd7 {[%clk 0:00:19]}  Nxd7 {[%clk 0:01:00]} 0-1


[Site "https://www.chess.com"]